bitfinex/quotes_BTCUSD_20251029
["timestamp","ask_amount","ask_price","bid_price","bid_amount"]
[1761764203842,0.22004043,111210.0,111180.0,0.73281479]
[1761764204038,0.18185696,111200.0,111180.0,0.73281479]
[1761764204237,0.1818565,111200.0,111180.0,0.73281479]
[1761764204439,0.1818565,111200.0,111180.0,5e-05]
[1761764204440,0.2696913,111190.0,111180.0,5e-05]
[1761764204847,0.2696913,111190.0,111170.0,0.00014437]
[1761764205062,0.2696913,111190.0,111160.0,0.0279047]
[1761764205063,0.17990465,111170.0,111160.0,0.0279047]
[1761764205273,0.26972366,111170.0,111160.0,0.00014414]
[1761764205479,0.31869287,111170.0,111160.0,0.00014414]
[1761764205842,0.17992083,111160.0,111150.0,0.0043246]
[1761764205987,0.26973984,111160.0,111150.0,0.0043246]
[1761764206199,0.1799694,111130.0,111110.0,0.0004]
[1761764206398,0.30984461,111120.0,111110.0,0.00054454]
[1761764206624,0.30984461,111120.0,111110.0,0.00141655]
[1761764207036,0.1800018,111110.0,111100.0,0.75368598]
[1761764207239,0.00014393,111110.0,111100.0,0.75368598]
[1761764207494,0.18014573,111110.0,111100.0,0.75368598]
[1761764207698,0.19923152,111110.0,111100.0,0.57851286]
[1761764207920,0.28905053,111110.0,111100.0,0.57851286]
[1761764208125,0.28905053,111110.0,111100.0,0.53218663]
[1761764208292,0.29205053,111110.0,111100.0,0.53218663]
[1761764208548,0.28905053,111110.0,111100.0,0.53218663]
[1761764208746,0.22002634,111120.0,111100.0,0.53218663]
[1761764208747,0.04004,111120.0,111100.0,0.53218663]
[1761764209088,0.1810018,111110.0,111100.0,0.53218663]
[1761764209303,0.27082081,111110.0,111100.0,0.53218663]
[1761764209759,0.27082081,111110.0,111080.0,0.0004]
[1761764209760,0.1800342,111090.0,111080.0,0.0004]
[1761764209990,0.25608085,111090.0,111080.0,0.00088191]
[1761764210396,0.07604665,111090.0,111080.0,0.00088191]
[1761764210609,0.001,111110.0,111080.0,0.82346571]
[1761764210825,0.19300272,111110.0,111080.0,0.82346571]
[1761764211036,0.04899928,111120.0,111090.0,0.73276479]
[1761764211250,0.22898509,111120.0,111090.0,1.1625838]
[1761764211861,0.18000332,111110.0,111090.0,0.42981901]
[1761764212067,0.18100332,111110.0,111090.0,1.1625838]
[1761764212273,0.18100332,111110.0,111090.0,0.08981901]
[1761764212518,0.001,111110.0,111090.0,0.8225838]
[1761764212726,0.001,111110.0,111100.0,0.73298286]
[1761764212899,0.1810018,111110.0,111100.0,0.73298286]
[1761764213315,0.001,111110.0,111100.0,0.00021807]
[1761764213519,0.18896658,111140.0,111110.0,0.34]
[1761764213726,0.20786324,111140.0,111110.0,0.42981901]
[1761764213881,0.003,111120.0,111110.0,0.42981901]
[1761764214080,0.004,111120.0,111110.0,1.1625838]
[1761764214306,0.1800018,111110.0,111100.0,0.00021807]
[1761764215065,0.1810018,111110.0,111100.0,0.73298286]
[1761764215269,0.1810018,111110.0,111100.0,0.00021807]
[1761764215511,0.1800018,111110.0,111100.0,0.00021807]
[1761764216123,0.1800018,111110.0,111100.0,0.00026807]
[1761764217337,0.26982081,111110.0,111100.0,0.00126807]
[1761764217755,0.2798208,111110.0,111100.0,0.00026807]
[1761764217958,0.32480144,111110.0,111100.0,0.00026807]
[1761764218158,0.32580144,111110.0,111100.0,0.00026807]
[1761764218374,0.1800342,111090.0,111080.0,0.00093191]
[1761764218694,0.30981321,111090.0,111080.0,0.00093191]
[1761764218895,0.35979776,111090.0,111080.0,0.00093191]
[1761764219101,0.26997875,111090.0,111080.0,0.00093191]
[1761764219314,0.2199942,111090.0,111080.0,0.00093191]
[1761764219521,0.03996,111090.0,111080.0,0.7336967]
[1761764219730,0.2199942,111090.0,111080.0,0.7336967]
[1761764219935,0.03996,111090.0,111080.0,0.00093191]
[1761764220142,0.24199205,111090.0,111080.0,0.00093191]
[1761764220347,0.03996,111090.0,111080.0,0.00093191]
[1761764220549,0.2199942,111090.0,111080.0,0.00093191]
[1761764220767,0.03996,111090.0,111080.0,0.82351571]
[1761764220985,0.04891928,111120.0,111080.0,0.82351571]
[1761764221193,0.21990873,111120.0,111110.0,0.73276479]
[1761764221402,0.18001013,111110.0,111090.0,0.42981901]
[1761764221611,0.180018,111100.0,111090.0,0.8225838]
[1761764221818,0.21601999,111100.0,111080.0,0.7336967]
[1761764222027,0.22890801,111120.0,111090.0,0.8225838]
[1761764222238,0.03992,111120.0,111100.0,0.73276479]
[1761764222447,0.21990627,111120.0,111100.0,0.73276479]
[1761764222660,0.1800018,111110.0,111100.0,0.73276479]
[1761764223117,0.1800342,111090.0,111080.0,0.00093191]
[1761764224105,0.30973321,111090.0,111080.0,0.00136813]
[1761764224351,0.03999081,111110.0,111080.0,0.82395193]
[1761764224611,0.22886632,111120.0,111090.0,0.73276479]
[1761764224818,0.03988,111120.0,111110.0,0.73276479]
[1761764225044,0.2198656,111120.0,111110.0,0.73276479]
[1761764225381,0.18895104,111140.0,111110.0,0.8225838]
[1761764225589,0.17997029,111130.0,111120.0,0.73276479]
[1761764225802,0.22884305,111150.0,111120.0,0.73276479]
[1761764226006,0.1799694,111130.0,111120.0,0.73276479]
[1761764226215,0.1799694,111130.0,111110.0,0.8225838]
[1761764226426,0.17996983,111130.0,111110.0,0.8225838]
[1761764226639,0.1889544,111140.0,111120.0,0.73276479]
[1761764226851,0.23489321,111140.0,111130.0,0.73276479]
[1761764227061,0.00899847,111130.0,111120.0,0.73276479]
[1761764227269,0.17995321,111140.0,111120.0,0.7332467]
[1761764227482,0.1799694,111130.0,111120.0,0.00048191]
[1761764227728,0.21596166,111130.0,111120.0,0.00048191]
[1761764228216,0.03599226,111130.0,111120.0,0.00048191]
[1761764228464,0.17995416,111140.0,111120.0,0.7332467]
[1761764228728,0.1799694,111130.0,111120.0,0.7332467]
[1761764228966,0.17995561,111140.0,111120.0,0.7332467]
[1761764229218,0.17995481,111140.0,111120.0,0.7332467]
[1761764229500,0.22501316,111140.0,111120.0,0.7332467]
[1761764230011,0.27062867,111150.0,111130.0,0.73276479]
[1761764230247,0.17995321,111140.0,111130.0,0.73276479]
[1761764230916,0.17995321,111140.0,111120.0,0.09130092]
[1761764231134,0.1799694,111130.0,111120.0,0.00148191]
[1761764231404,0.26978841,111130.0,111120.0,0.00048191]
[1761764231628,0.31476257,111130.0,111120.0,0.00048191]
[1761764231843,0.31476257,111130.0,111120.0,0.00148191]
[1761764232065,0.31476257,111130.0,111120.0,0.00048191]
[1761764232281,0.13479317,111130.0,111120.0,0.00048191]
[1761764232487,0.31576257,111130.0,111120.0,0.00048191]
[1761764232948,0.22594356,111130.0,111120.0,0.00048191]
[1761764233164,0.1809694,111130.0,111120.0,0.00048191]
[1761764233932,0.1799694,111130.0,111120.0,0.00048191]
[1761764234151,0.1829694,111130.0,111120.0,0.00048191]
[1761764234442,0.1799694,111130.0,111120.0,0.7332467]
[1761764234670,0.1799694,111130.0,111120.0,0.82306571]
[1761764235424,0.001,111130.0,111120.0,0.82306571]
[1761764235648,0.17995435,111140.0,111120.0,0.82306571]
[1761764235853,0.1799694,111130.0,111120.0,0.82306571]
[1761764236070,0.22084219,111140.0,111120.0,0.82306571]
[1761764236323,0.22884517,111150.0,111130.0,0.8225838]
[1761764236324,0.22881409,111150.0,111130.0,0.8225838]
[1761764236556,0.21981888,111150.0,111140.0,0.73276479]
[1761764236767,0.18900918,111170.0,111140.0,0.8225838]
[1761764236982,0.17992276,111160.0,111150.0,0.73276479]
[1761764237194,0.17993702,111150.0,111140.0,0.8225838]
[1761764237846,0.17992178,111160.0,111140.0,0.08981901]
[1761764238072,0.21681488,111160.0,111150.0,0.73276479]
[1761764238283,0.21681488,111160.0,111150.0,0.73376479]
[1761764238284,0.17992083,111160.0,111150.0,0.73376479]
[1761764238523,0.17992083,111160.0,111150.0,0.001]
[1761764238738,0.17992083,111160.0,111150.0,0.73276479]
[1761764238982,0.17993702,111150.0,111140.0,0.09181901]
[1761764239190,0.17993702,111150.0,111140.0,0.8245838]
[1761764239396,0.036893,111160.0,111140.0,0.8225838]
[1761764239601,0.17992132,111160.0,111150.0,0.73276479]
[1761764240028,0.22873269,111180.0,111150.0,0.73276479]
[1761764240272,0.02248807,111170.0,111150.0,0.73276479]
[1761764240484,0.17990465,111170.0,111160.0,0.73276479]
[1761764240697,0.17990465,111170.0,111150.0,0.34]
[1761764240906,0.17992083,111160.0,111150.0,0.001]
[1761764241111,0.17992083,111160.0,111150.0,0.73276479]
[1761764241759,0.18906136,111160.0,111150.0,0.73276479]
[1761764242189,0.18906136,111160.0,111150.0,0.73376479]
[1761764242406,0.00014449,111160.0,111150.0,0.73376479]
[1761764243066,0.00014449,111160.0,111150.0,0.8235838]
[1761764243496,0.00014449,111160.0,111150.0,1.1635838]
[1761764243884,0.00014449,111160.0,111150.0,0.42981901]
[1761764244180,0.00014449,111160.0,111150.0,1.1625838]
[1761764244848,0.00014449,111160.0,111150.0,1.1635838]
[1761764245073,0.00014449,111160.0,111150.0,1.1655838]
[1761764245302,0.00014449,111160.0,111150.0,3.39133248]
[1761764245512,0.00014449,111160.0,111150.0,3.21139546]
[1761764245723,0.00014449,111160.0,111150.0,3.39133248]
[1761764246146,0.00014449,111160.0,111150.0,3.3541502]
[1761764246349,0.00014449,111160.0,111150.0,3.21039546]
[1761764246560,0.00014449,111160.0,111150.0,3.21339546]
[1761764247003,0.18006532,111160.0,111150.0,0.8245838]
[1761764247231,0.18906136,111160.0,111150.0,0.73276479]
[1761764247442,0.18906136,111160.0,111150.0,1.08076479]
[1761764247661,0.22595833,111160.0,111150.0,0.008]
[1761764247877,0.22595833,111160.0,111150.0,0.005]
[1761764248313,0.22595833,111160.0,111140.0,0.73276479]
[1761764248314,0.17993702,111150.0,111140.0,0.73276479]
[1761764248942,0.18896048,111140.0,111130.0,0.73276479]
[1761764249152,0.00899766,111140.0,111090.0,0.3031127]
[1761764249372,0.17995321,111140.0,111130.0,0.73276479]
[1761764249588,0.19884822,111140.0,111130.0,0.73276479]
[1761764250226,0.17995321,111140.0,111130.0,0.73276479]
[1761764250697,0.17997116,111130.0,111100.0,0.42981901]
[1761764250903,0.17997116,111130.0,111120.0,0.34]
[1761764251113,0.18895087,111140.0,111120.0,0.42981901]
[1761764251332,0.1799694,111130.0,111120.0,0.42981901]
[1761764251544,0.17995374,111140.0,111120.0,0.42981901]
[1761764251793,0.17995672,111140.0,111120.0,0.08981901]
[1761764252020,0.17995321,111140.0,111130.0,0.8235838]
[1761764252229,0.22598601,111160.0,111130.0,0.8225838]
[1761764252436,0.17993704,111150.0,111140.0,0.73276479]
[1761764253307,0.17995321,111140.0,111130.0,0.08981901]
[1761764253525,0.17993704,111150.0,111130.0,1.1625838]
[1761764253743,0.17993704,111150.0,111140.0,0.73276479]
[1761764254163,0.22052934,111150.0,111140.0,0.73276479]
[1761764254641,0.22598601,111160.0,111140.0,0.73276479]
[1761764254856,0.18006532,111160.0,111150.0,0.73276479]
[1761764255085,0.00014449,111160.0,111150.0,0.73276479]
[1761764255309,0.00014449,111160.0,111150.0,1.1625838]
[1761764255539,0.18006532,111160.0,111150.0,1.1625838]
[1761764255774,0.00014449,111160.0,111150.0,1.1625838]
[1761764256210,0.00014449,111160.0,111150.0,3.3787031]
[1761764256624,0.00014449,111160.0,111150.0,3.19876608]
[1761764256827,0.00014449,111160.0,111150.0,3.3787031]
[1761764257033,0.00014449,111160.0,111150.0,3.3797031]
[1761764257449,0.00014449,111160.0,111150.0,2.46700129]
[1761764257654,0.00014449,111160.0,111150.0,3.19876608]
[1761764257891,0.00014449,111160.0,111150.0,1.1625838]
[1761764258109,0.00014449,111160.0,111150.0,1.1655838]
[1761764258327,0.18106532,111160.0,111150.0,0.8315838]
[1761764258735,0.00014449,111160.0,111150.0,1.1655838]
[1761764258945,0.00014449,111160.0,111150.0,0.8255838]
[1761764259154,0.18006532,111160.0,111150.0,0.8265838]
[1761764259356,0.00014449,111160.0,111150.0,1.1665838]
[1761764259577,0.18006532,111160.0,111150.0,1.1665838]
[1761764259786,0.00014449,111160.0,111150.0,1.1635838]
[1761764260204,0.00014449,111160.0,111150.0,1.1655838]
[1761764260416,0.00014449,111160.0,111150.0,1.1645838]
[1761764260621,0.00014449,111160.0,111150.0,1.1625838]
[1761764260856,0.00014449,111160.0,111150.0,1.1635838]
[1761764261278,0.18725962,111180.0,111160.0,0.34]
[1761764261485,0.17990726,111170.0,111160.0,1.1625838]
[1761764262251,0.17990726,111170.0,111160.0,1.2125838]
[1761764262457,0.17990726,111170.0,111160.0,0.05]
[1761764262869,0.17990465,111170.0,111160.0,0.78276479]
[1761764263068,0.26972366,111170.0,111160.0,0.05]
[1761764263745,0.30590594,111170.0,111160.0,0.05]
[1761764263950,0.17992083,111160.0,111150.0,0.003]
[1761764264167,0.21936083,111160.0,111150.0,0.003]
[1761764264399,0.24415178,111160.0,111150.0,0.003]
[1761764264603,0.21936083,111160.0,111150.0,0.003]
[1761764264816,0.17995321,111140.0,111130.0,0.34]
[1761764265025,0.17995321,111140.0,111130.0,0.9040054]
[1761764266176,0.17995321,111140.0,111130.0,0.00014449]
[1761764266878,0.26977222,111140.0,111130.0,0.00014449]
[1761764267002,0.31474459,111140.0,111130.0,0.00014449]
[1761764267627,0.31474459,111140.0,111130.0,0.00114449]
[1761764268046,0.31474459,111140.0,111130.0,0.00214449]
[1761764268436,0.31474459,111140.0,111130.0,0.00119449]
[1761764268864,0.31474459,111140.0,111130.0,0.00219449]
[1761764269074,0.31474459,111140.0,111130.0,0.00119449]
[1761764269562,0.31774459,111140.0,111130.0,0.00119449]
[1761764269950,0.31774459,111140.0,111130.0,0.00019449]
[1761764270275,0.35392687,111140.0,111130.0,0.00019449]
[1761764270473,0.31874459,111140.0,111130.0,0.00019449]
[1761764270710,0.35492687,111140.0,111130.0,0.00019449]
[1761764270923,0.35392687,111140.0,111130.0,0.00019449]
[1761764271334,0.27377222,111140.0,111130.0,0.00019449]
[1761764271558,0.27377222,111140.0,111130.0,0.00024449]
[1761764271765,0.3099545,111140.0,111130.0,0.00024449]
[1761764272617,0.6499545,111140.0,111130.0,1e-08]
[1761764273242,0.6489545,111140.0,111130.0,1e-08]
[1761764273442,0.73481051,111140.0,111130.0,1e-08]
[1761764273650,0.73581051,111140.0,111130.0,1e-08]
[1761764274284,0.73281051,111140.0,111130.0,1e-08]
[1761764274498,0.61077222,111140.0,111130.0,1e-08]
[1761764274717,0.004,111140.0,111130.0,0.47404191]
[1761764274936,0.0089928,111200.0,111150.0,0.34]
[1761764275167,0.1888833,111180.0,111150.0,0.38584076]
[1761764275411,0.1888833,111180.0,111130.0,0.08981902]
[1761764275412,0.17995321,111140.0,111130.0,0.08981902]
[1761764275656,0.17993702,111170.0,111130.0,0.47404191]
[1761764275657,0.18893225,111170.0,111130.0,0.47404191]
[1761764275897,0.18893225,111170.0,111130.0,0.81404191]
[1761764275898,0.003,111140.0,111130.0,0.81404191]
[1761764276097,0.17995321,111140.0,111130.0,0.81404191]
[1761764276525,0.17994925,111150.0,111130.0,0.81404191]
[1761764276731,0.18894678,111160.0,111140.0,0.4740419]
[1761764276946,0.17993702,111150.0,111130.0,0.42981902]
[1761764277194,0.1888833,111180.0,111140.0,0.56386091]
[1761764277401,0.1799259,111160.0,111150.0,0.4740419]
[1761764277605,0.18890075,111170.0,111150.0,0.4740419]
[1761764277813,0.17992083,111160.0,111150.0,0.4740419]
[1761764278018,0.17992083,111160.0,111140.0,0.56386091]
[1761764278434,0.18771065,111180.0,111150.0,0.4740419]
[1761764278685,0.17990465,111170.0,111160.0,0.56386091]
[1761764278895,0.17990465,111170.0,111160.0,0.08981901]
[1761764279344,0.17992083,111160.0,111150.0,0.341]
[1761764279564,0.19858659,111170.0,111150.0,0.341]
[1761764279782,0.17992083,111160.0,111150.0,0.341]
[1761764279992,0.17992083,111160.0,111150.0,0.001]
[1761764280180,0.17993702,111150.0,111140.0,0.8140419]
[1761764280388,0.17993702,111150.0,111140.0,0.34]
[1761764280598,0.17995321,111140.0,111130.0,0.42981902]
[1761764280804,0.17995321,111140.0,111130.0,0.90386092]
[1761764281037,0.18891687,111160.0,111130.0,0.90386092]
[1761764281239,0.17993827,111150.0,111140.0,0.4740419]
[1761764281577,0.17993827,111150.0,111130.0,0.90386092]
[1761764281975,0.17993827,111150.0,111140.0,0.001]
[1761764282189,0.26975728,111150.0,111140.0,0.001]
[1761764282429,0.35180698,111150.0,111140.0,0.001]
[1761764282836,0.3156247,111150.0,111140.0,0.001]
[1761764283040,0.35180698,111150.0,111140.0,0.001]
[1761764283242,0.3156247,111150.0,111140.0,0.001]
[1761764283662,0.17995321,111140.0,111130.0,1e-08]
[1761764283898,0.31933001,111140.0,111130.0,1e-08]
[1761764284509,0.69551229,111140.0,111130.0,1e-08]
[1761764284729,0.70551228,111140.0,111130.0,1e-08]
[1761764284946,0.71551227,111140.0,111130.0,1e-08]
[1761764285147,0.71651227,111140.0,111130.0,1e-08]
[1761764285680,0.71851227,111140.0,111130.0,1e-08]
[1761764286300,0.70851228,111140.0,111130.0,1e-08]
[1761764286527,0.69851229,111140.0,111130.0,1e-08]
[1761764286707,0.1800342,111090.0,111080.0,0.4740419]
[1761764286923,0.18903112,111100.0,111080.0,0.47452381]
[1761764287128,0.18900301,111110.0,111090.0,0.4740419]
[1761764287335,0.1800342,111090.0,111080.0,0.00070003]
[1761764288066,0.1800342,111090.0,111080.0,0.00270003]
[1761764288468,0.1800342,111090.0,111080.0,0.47674193]
[1761764288698,0.1800342,111090.0,111080.0,0.00070003]
[1761764289727,0.18001899,111100.0,111080.0,0.00070003]
[1761764289938,0.1800342,111090.0,111080.0,0.00170003]
[1761764290142,0.18029105,111090.0,111080.0,0.00170003]
[1761764290470,0.18029105,111090.0,111080.0,0.00070003]
[1761764290674,0.18193084,111090.0,111080.0,0.00170003]
[1761764291132,0.18193084,111090.0,111080.0,0.00070003]
[1761764291334,0.27174985,111090.0,111080.0,0.00270003]
[1761764291718,0.18005041,111080.0,111070.0,8e-05]
[1761764291919,0.00900576,111040.0,111010.0,0.22879048]
[1761764292118,0.00900576,111040.0,111010.0,0.024394]
[1761764292119,0.18014772,111020.0,111010.0,0.024394]
[1761764292317,0.18014772,111020.0,111010.0,0.00014468]
[1761764292551,0.21617564,111020.0,111010.0,0.00014468]
[1761764292754,0.21617564,111020.0,111010.0,0.00167257]
[1761764292953,0.21617564,111020.0,111010.0,3.278e-05]
[1761764293543,0.18913537,111040.0,111010.0,0.47407468]
[1761764293752,0.18913866,111030.0,111010.0,0.4740419]
[1761764293954,0.18013395,111030.0,111010.0,0.4740419]
[1761764294215,0.18014772,111020.0,111010.0,0.4750419]
[1761764294529,0.18014772,111020.0,111000.0,0.1028]
[1761764294734,0.03157973,111020.0,111000.0,0.19261901]
[1761764294963,0.002,111040.0,111020.0,2.34]
[1761764295162,0.00014428,111040.0,111030.0,0.90386091]
[1761764295704,0.00014428,111040.0,111030.0,1.0839924]
[1761764295904,0.00014428,111040.0,111030.0,1.59421658]
[1761764296105,0.00014428,111040.0,111030.0,1.41408509]
[1761764296327,0.00014428,111040.0,111030.0,1.59421658]
[1761764296527,0.00014428,111040.0,111030.0,0.42981901]
[1761764296826,0.00014428,111040.0,111010.0,0.002]
[1761764296827,0.18014469,111030.0,111010.0,0.002]
[1761764297030,0.18014772,111020.0,111010.0,0.4760419]
[1761764297248,0.21708569,111030.0,111010.0,0.56586091]
[1761764297421,0.21708569,111030.0,111020.0,0.4740419]
[1761764297631,0.18926531,111040.0,111020.0,0.56386091]
[1761764297904,0.19026531,111040.0,111030.0,0.4740419]
[1761764298109,0.18926531,111040.0,111030.0,0.4740419]
[1761764298338,0.18025955,111040.0,111020.0,0.08981901]
[1761764298543,0.18025955,111040.0,111030.0,0.4740419]
[1761764298742,0.18013149,111030.0,111020.0,0.90386091]
[1761764299149,0.21719592,111040.0,111020.0,0.90586091]
[1761764299150,0.00014428,111040.0,111020.0,0.90586091]
[1761764299379,0.18026063,111040.0,111030.0,0.4740419]
[1761764299561,0.18013149,111030.0,111020.0,0.42981901]
[1761764299716,0.18013149,111030.0,111020.0,0.90386091]
[1761764300153,0.18014772,111020.0,111010.0,0.341]
[1761764300357,0.18014772,111020.0,111010.0,0.90486091]
[1761764300554,0.18014772,111020.0,111010.0,0.90386091]
[1761764301060,0.18014772,111020.0,111000.0,0.1028]
[1761764301061,0.18016394,111010.0,111000.0,0.1028]
[1761764302333,0.26998295,111010.0,111000.0,0.1028]
[1761764302565,0.18019641,110990.0,110980.0,0.0004]
[1761764302771,0.18928481,110960.0,110930.0,0.03042625]
[1761764302973,0.19917361,110960.0,110950.0,0.4740419]
[1761764303151,0.18924033,110970.0,110950.0,0.4740419]
[1761764303152,0.18022938,110970.0,110950.0,0.4740419]
[1761764303355,0.18024513,110960.0,110950.0,0.4740419]
[1761764303674,0.18925228,110980.0,110950.0,0.4740419]
[1761764303890,0.03784585,110980.0,110960.0,0.4740419]
[1761764304072,0.18019992,110990.0,110950.0,0.43030179]
[1761764304274,0.18023227,110970.0,110950.0,0.09030179]
[1761764304510,0.18023441,110970.0,110950.0,0.56434369]
[1761764304710,0.18022889,110970.0,110960.0,0.47516688]
[1761764304926,0.18922346,110980.0,110960.0,0.47516688]
[1761764305172,0.18022889,110970.0,110960.0,0.4740419]
[1761764305608,0.18022889,110970.0,110960.0,0.00112498]
[1761764305823,0.03784332,110980.0,110960.0,0.56498589]
[1761764306029,0.18021265,110980.0,110970.0,0.56386091]
[1761764306241,0.18022889,110970.0,110960.0,0.56386091]
[1761764306447,0.21715509,110980.0,110960.0,0.42981901]
[1761764306652,0.18022889,110970.0,110960.0,0.34]
[1761764307283,0.18022889,110970.0,110960.0,0.341]
[1761764307486,0.18022889,110970.0,110960.0,0.001]
[1761764307638,0.18024513,110960.0,110950.0,0.34348278]
[1761764307868,0.18024513,110960.0,110950.0,0.43030179]
[1761764308070,0.18024513,110960.0,110950.0,0.09030179]
[1761764308278,0.21996729,110970.0,110950.0,0.56434369]
[1761764308440,0.18024513,110960.0,110950.0,0.56434369]
[1761764308649,0.22026637,110960.0,110950.0,0.56434369]
[1761764308846,0.04002124,110960.0,110950.0,0.56534369]
[1761764309065,0.22026637,110960.0,110950.0,0.09130179]
[1761764309256,0.22026637,110960.0,110950.0,0.00148278]
[1761764309466,0.22052322,110960.0,110950.0,0.00148278]
[1761764310528,0.22052322,110960.0,110950.0,0.47552468]
[1761764310678,0.22052322,110960.0,110950.0,0.00148278]
[1761764310892,0.22052322,110960.0,110950.0,0.00048278]
[1761764311287,0.22052322,110960.0,110950.0,0.00348278]
[1761764311728,0.22052322,110960.0,110950.0,0.00182631]
[1761764311939,0.18027762,110940.0,110930.0,0.03042625]
[1761764312152,0.18029387,110930.0,110920.0,8e-05]
[1761764313241,0.21681347,110940.0,110920.0,8e-05]
[1761764313443,0.18029387,110930.0,110920.0,8e-05]
[1761764313896,0.03653585,110940.0,110920.0,0.56394091]
[1761764314099,0.18075891,110940.0,110920.0,0.08989901]
[1761764314305,0.00048052,110940.0,110920.0,0.08989901]
[1761764314516,0.00048052,110940.0,110930.0,0.90386091]
[1761764314725,0.00048052,110940.0,110930.0,0.42981901]
[1761764315185,0.00048052,110940.0,110930.0,0.90386091]
[1761764315601,0.18075814,110940.0,110920.0,8e-05]
[1761764315815,0.19381591,110930.0,110920.0,0.4741219]
[1761764316017,0.18029387,110930.0,110920.0,8e-05]
[1761764316460,0.21776198,110940.0,110920.0,0.4741219]
[1761764316675,0.21776171,110940.0,110930.0,0.4740419]
[1761764317093,0.03748379,110940.0,110930.0,0.4740419]
[1761764317299,0.00048052,110940.0,110920.0,0.08989901]
[1761764317501,0.18029387,110930.0,110920.0,0.08989901]
[1761764317891,0.18027762,110940.0,110930.0,0.002]
[1761764318162,0.1892771,110950.0,110930.0,0.002]
[1761764318366,0.1803917,110950.0,110930.0,0.08981901]
[1761764318569,0.001,110940.0,110930.0,0.42981901]
[1761764318776,0.001,110940.0,110930.0,0.90386091]
[1761764318989,0.18026323,110950.0,110940.0,0.4740419]
[1761764319188,0.18026323,110950.0,110940.0,0.56386091]
[1761764319394,0.03912336,110950.0,110940.0,0.08981901]
[1761764319601,0.18027762,110940.0,110930.0,0.34]
[1761764319806,0.18027762,110940.0,110930.0,0.90386091]
[1761764320472,0.18026256,110950.0,110930.0,0.42981901]
[1761764320718,0.18922328,110980.0,110940.0,0.56386091]
[1761764320928,0.18922328,110980.0,110970.0,0.4740419]
[1761764321135,0.18922328,110980.0,110960.0,0.4740419]
[1761764321340,0.18924063,110970.0,110960.0,0.8140419]
[1761764321770,0.18022889,110970.0,110960.0,0.34]
[1761764321968,0.18922328,110980.0,110960.0,0.8140419]
[1761764322175,0.18927924,111000.0,110960.0,0.42981901]
[1761764322379,0.001,110980.0,110970.0,0.4740419]
[1761764322557,0.001,110980.0,110970.0,0.56386091]
[1761764322772,0.18019684,110990.0,110970.0,0.56386091]
[1761764322992,0.18019641,110990.0,110980.0,0.08981901]
[1761764323202,0.18927924,111000.0,110980.0,0.56386091]
[1761764323412,0.18018021,111000.0,110990.0,0.4740419]
[1761764323622,0.18018018,111000.0,110980.0,0.08981901]
[1761764323827,0.18019641,110990.0,110980.0,0.90386091]
[1761764324282,0.21712284,111000.0,110980.0,0.90400557]
[1761764324498,0.18019641,110990.0,110980.0,0.90400557]
[1761764324743,0.18019641,110990.0,110980.0,0.08996367]
[1761764324956,0.18019641,110990.0,110980.0,0.00014466]
[1761764325172,0.21992858,110990.0,110980.0,0.00014466]
[1761764325386,0.30974759,110990.0,110980.0,0.00014466]
[1761764326431,0.64974759,110990.0,110980.0,0.00014466]
[1761764326696,0.65974758,110990.0,110980.0,0.00014466]
[1761764326902,0.18027762,110940.0,110930.0,1.07602119]
[1761764327114,0.18027762,110940.0,110930.0,1.16598491]
[1761764327328,0.18027762,110940.0,110930.0,0.82598491]
[1761764327751,0.18027762,110940.0,110930.0,0.08996372]
[1761764327955,0.18027579,110950.0,110930.0,1.16598491]
[1761764328191,0.00901225,110960.0,110940.0,0.8258402]
[1761764328398,0.18026137,110950.0,110940.0,0.08981901]
[1761764328602,0.18024566,110960.0,110940.0,0.8258402]
[1761764328813,0.18927874,110970.0,110950.0,0.73602119]
[1761764329028,0.18927874,110970.0,110950.0,0.8258402]
[1761764329231,0.18001013,110960.0,110950.0,0.8258402]
[1761764329431,0.18001013,110960.0,110950.0,0.08981901]
[1761764329782,0.18124513,110960.0,110950.0,0.08981901]
[1761764329996,0.18124513,110960.0,110950.0,0.8258402]
[1761764330197,0.18024513,110960.0,110950.0,0.08981901]
[1761764330884,0.23012219,110970.0,110950.0,0.8258402]
[1761764331022,0.18024513,110960.0,110950.0,0.8258402]
[1761764331874,0.18024513,110960.0,110950.0,0.8268402]
[1761764332274,0.18024513,110960.0,110950.0,0.8258402]
[1761764332483,0.18927874,110970.0,110950.0,0.8258402]
[1761764332484,0.18023168,110970.0,110950.0,0.8258402]
[1761764332914,0.001,110970.0,110960.0,1.16558335]
[1761764333128,0.18920643,110990.0,110970.0,0.34]
[1761764333332,0.18020861,111000.0,110980.0,0.8258402]
[1761764333583,0.18018093,111000.0,110990.0,0.73602119]
[1761764333823,0.18018093,111000.0,110980.0,0.08981901]
[1761764334058,0.18018093,111000.0,110980.0,0.8258402]
[1761764334302,0.18019641,110990.0,110980.0,0.8258402]
[1761764334546,0.18019641,110990.0,110980.0,0.08981901]
[1761764334777,0.18019641,110990.0,110970.0,0.34]
[1761764334778,0.18021265,110980.0,110970.0,0.34]
[1761764335005,0.18021265,110980.0,110970.0,0.42981901]
[1761764335681,0.18019641,110990.0,110970.0,0.42981901]
[1761764335900,0.18021265,110980.0,110970.0,0.42981901]
[1761764336342,0.18021265,110980.0,110970.0,0.34]
[1761764336811,0.18021265,110980.0,110970.0,1.1658402]
[1761764337046,0.04064754,110990.0,110970.0,1.1658402]
[1761764337277,0.18019703,110990.0,110970.0,1.1658402]
[1761764337504,0.22627895,111000.0,110970.0,1.1658402]
[1761764337732,0.18032554,111000.0,110980.0,0.8258402]
[1761764338016,0.18019641,110990.0,110980.0,0.08981901]
[1761764338676,0.00014463,111000.0,110970.0,1.07702119]
[1761764338886,0.00014463,111000.0,110980.0,0.8258402]
[1761764339084,0.18019641,110990.0,110980.0,0.08981901]
[1761764339753,0.18032658,111000.0,110980.0,0.08981901]
[1761764339967,0.18032481,111000.0,110990.0,0.73602119]
[1761764340196,0.18019641,110990.0,110980.0,0.8258402]
[1761764340411,0.18019641,110990.0,110980.0,0.08981901]
[1761764340618,0.18019641,110990.0,110980.0,0.8268402]
[1761764341291,0.21827457,111000.0,110980.0,0.8258402]
[1761764341292,0.21827478,111000.0,110980.0,0.8258402]
[1761764341499,0.18132634,111000.0,110980.0,0.8268402]
[1761764341762,0.18132634,111000.0,110990.0,0.73602119]
[1761764342232,0.18132634,111000.0,110980.0,0.08981901]
[1761764342476,0.00114463,111000.0,110990.0,1.1658402]
[1761764342707,0.00014463,111000.0,110990.0,1.38221889]
[1761764342920,0.00014463,111000.0,110990.0,1.39176696]
[1761764343406,0.00014463,111000.0,110990.0,0.42981901]
[1761764343634,0.00014463,111000.0,110990.0,1.1658402]
[1761764343861,0.00014463,111000.0,110990.0,1.34603661]
[1761764344119,0.00014463,111000.0,110990.0,1.1668402]
[1761764344364,0.18032481,111000.0,110990.0,0.346]
[1761764344602,0.21637388,111000.0,110990.0,0.005]
[1761764345078,0.21637388,111000.0,110990.0,0.74102119]